Cogmind - Beta 13 @@@ ROGUE MODE // 2024.08.05 @ 02:28:31 // Winter2019/RPGLIKE Player: badjay Result: Destroyed by G-34 Mercenary with Small Laser Performance ------------- Evolutions (0) 0 Regions Visited (1) 200 Robots Destroyed (4) 20 Value Destroyed (162) 162 Prototype IDs (3) 60 Alien Tech Used (0) 0 Bonus (0) 0 TOTAL SCORE: 442 Bonus ------- None Cogmind --------- Core Integrity 0/600 Matter 240/300 Energy 100/100 System Corruption 0% Temperature Cool (6) Movement Core (50) Location -10/Materials Parts ------- > --- POWER (2) -------- (None) > --- PROPULSION (2) --- (None) > --- UTILITY (2) ------ (None) > --- WEAPON (2) ------- Light Assault Rifle Light Assault Rifle > --- INVENTORY (0) ---- (None) Peak State ------------ > --- POWER ------------ Ion Engine > --- PROPULSION ------- Flight Unit > --- UTILITY ---------- (None) > --- WEAPON ----------- EM Pulse Gun > --- INVENTORY -------- (None) [Rating: 3] Favorites ----------- Power Ion Engine Engine Ion Engine Propulsion Flight Unit Flight Unit Flight Unit Utility None Weapon EM Pulse Gun Energy Gun EM Pulse Gun Ballistic Gun Light Assault Rifle Build | -11 -10 ------- Run | Yrd Mat Slots Evolved 4 | 4 . Power 1 | 1 . Propulsion 1 | 1 . Utility 1 | 1 . Weapon 1 | 1 . Parts Attached 5 | 1 4 Power 1 | . 1 Engine 1 | . 1 Core . | . . Reactor . | . . Propulsion 1 | . 1 Treads . | . . Leg . | . . Wheel . | . . Hover . | . . Flight 1 | . 1 Utility . | . . Device . | . . Storage . | . . Processor . | . . Hackware . | . . Protection . | . . Artifact . | . . Weapon 3 | 1 2 Energy Gun 1 | 1 . Energy Cannon . | . . Ballistic Gun 2 | . 2 Ballistic Cannon . | . . Launcher . | . . Special Weapon . | . . Impact Weapon . | . . Slashing Weapon . | . . Piercing Weapon . | . . Special Melee Weapon . | . . Unidentified Prototypes . | . . Parts Lost 2 | . 2 Power . | . . Propulsion 1 | . 1 Utility . | . . Weapon 1 | . 1 Highest Loss Streak 1 | . 1 To Critical Strikes . | . . Average Slot Usage (%) 22 | . 22 Flight 7 | . 7 Energy Gun 9 | . 9 Ballistic Gun 4 | . 4 Naked Turns . | . . Heaviest Build 2 | 2 2 Greatest Support 4 | 3 4 Greatest Overweight (x) . | . . Average Overweight (x) . | . . Largest Inventory Capacity . | . . Average Capacity . | . . Most Carried . | . . Average Carried . | . . Final Capacity . | . . Final Carried . | . . Class Distribution -------------------- 100% | Mutant Dominant Class ---------------- Mutant | -10/Materials Resources | -11 -10 ----------- Run | Yrd Mat Matter Collected 220 | 202 18 Remotely . | . . Salvage Created 154 | . 154 Parts 6 | . 6 Haulers Intercepted . | . . Recyclers Shooed . | . . Parts Field Recycled . | . . Retrieved Matter . | . . Parts Self-Destructed . | . . Prevented . | . . Kills | -11 -10 ------- Run | Yrd Mat Combat Hostiles Destroyed 4 | . 4 Guns 3 | . 3 Classes Destroyed 1 | . 1 Grunt 4 | . 4 Best Kill Streak 2 | . 2 Combat Bots Only 2 | . 2 Max Kills in Single Turn 1 | . 1 Gunslinging . | . . Exploded . | . . Melee . | . . Uniques/NPCs Destroyed . | . . Combat | -11 -10 -------- Run | Yrd Mat Hostile Shots Fired 90 | . 90 Missed 31 | . 31 Damage Taken 807 | . 807 Core 706 | . 706 Absorbed by Shields . | . . Redirected to Core 336 | . 336 Core Remaining (%) 100 | 100 . Volleys Fired 54 | 1 53 Largest 2 | 1 2 Hottest 40 | 40 40 Shots Fired 74 | 1 73 Gun 74 | 1 73 Cannon . | . . Launcher . | . . Special . | . . Kinetic 40 | . 40 Thermal . | . . Explosive . | . . Electromagnetic 34 | 1 33 Robot Hit Streak 8 | 1 8 Robot Miss Streak 4 | . 4 Penetration Max . | . . Secondary Targets . | . . Shots Hit Robots 47 | 1 46 Core Hits 10 | . 10 Critical Kills . | . . Critical Parts Destroyed . | . . Critical Strikes 1 | . 1 Corrupt 1 | . 1 Melee Attacks . | . . Impact . | . . Slashing . | . . Piercing . | . . Sneak Attacks . | . . Combat Hostiles . | . . Follow-up Attacks . | . . Damage Inflicted 514 | 13 501 Guns 514 | 13 501 Cannons . | . . Explosions . | . . Melee . | . . Ramming . | . . Kinetic 219 | . 219 Thermal . | . . Explosive . | . . Electromagnetic 295 | 13 282 Impact . | . . Slashing . | . . Piercing . | . . Highest Corruption . | . . Average Corruption . | . . Corruption Purged . | . . Corruption Blocked . | . . Overload Shots . | . . Overflow Damage . | . . Projectiles . | . . Explosions . | . . Melee . | . . Knockbacks . | . . Impact . | . . Kinetic . | . . Secondary . | . . Self-Inflicted Damage . | . . Shots . | . . Rammed . | . . Targets Rammed . | . . Kicked . | . . Crushed . | . . Highest Temperature 30 | . 30 Average Temperature 8 | . 8 Received Heat Transfer 459 | . 459 Siege Activations . | . . Robots Corrupted 1 | . 1 Combat Hostiles 1 | . 1 Parts Fried 2 | . 2 Impact Corruptions . | . . Robots Melted . | . . Combat Hostiles . | . . Parts Melted . | . . Heat Transferred . | . . Parts Sabotaged . | . . Parts Stolen . | . . Parts Stripped . | . . Power Chain Reactions . | . . Alert | -11 -10 ------- Run | Yrd Mat Peak Influence 276 | . 276 Initial . | . . Average 156 | . 169 Maximum Alert Level 1 | . 1 Low Security (%) 56 | 100 53 Level 1 43 | . 46 Level 2 . | . . Level 3 . | . . Level 4 . | . . Level 5 . | . . High Security . | . . Max Security . | . . Squads Dispatched 1 | . 1 Investigation . | . . Extermination . | . . Reinforcement 1 | . 1 Assault . | . . Garrison . | . . Intercept . | . . Searches Triggered . | . . Construction Impeded . | . . Haulers Reinforced . | . . Active Scanning Responses . | . . Cargo Convoy Interrupts . | . . Stealth | -11 -10 --------- Run | Yrd Mat Distress Signals . | . . Communications Jammed . | . . Distress Signals . | . . Times Spotted 12 | . 12 Peak Tracking Total 5 | . 5 Tactical Retreats 1 | . 1 Traps | -11 -10 ------- Run | Yrd Mat Traps Triggered 1 | . 1 Indirectly . | . . Trap Hack Attempts . | . . Triggered . | . . Disarmed . | . . Reprogrammed . | . . Reused . | . . Traps Extracted . | . . Installed . | . . Triggered . | . . Machines | -11 -10 ---------- Run | Yrd Mat Machines Disabled . | . . Max in Single Turn . | . . Machines Repaired . | . . Machines Dismantled . | . . Machines Sabotaged . | . . Overloaded Fab Kills . | . . Hacking | -11 -10 --------- Run | Yrd Mat Machines Accessed 4 | . 4 Terminals 4 | . 4 Fabricators . | . . Repair Stations . | . . Recycling Units . | . . Scanalyzers . | . . Garrison Access . | . . Total Hacks 19 | . 19 Successful 6 | . 6 Failed 13 | . 13 Catastrophic . | . . Database Lockouts . | . . Manual 13 | . 13 Terminals 19 | . 19 Fabricators . | . . Repair Stations . | . . Recycling Units . | . . Scanalyzers . | . . Garrison Access . | . . Terminal Hacks 3 | . 3 Prototype ID Bank 1 | . 1 Patrol Status 1 | . 1 Registered Prototypes 1 | . 1 Fabricator Hacks . | . . Repair Station Hacks . | . . Recycling Unit Hacks . | . . Scanalyzer . | . . Garrison Access Hacks . | . . Unauthorized Hacks 3 | . 3 Terminals 3 | . 3 Botnet 2 | . 2 Operators 1 | . 1 Fabricators . | . . Repair Stations . | . . Recycling Units . | . . Scanalyzers . | . . Garrison Access . | . . Data Cores Recovered . | . . Used . | . . Hacking Detections 4 | . 4 Full Trace Events . | . . Feedback Events . | . . Feedback Blocked . | . . Robot Schematics Acquired . | . . Robots Built . | . . Authchips . | . . Time . | . . Total Robot Build Rating . | . . Part Schematics Acquired . | . . Parts Built . | . . Authchips . | . . Time . | . . Total Part Build Rating . | . . Parts Repaired . | . . Time . | . . Parts Recycled . | . . Recycled Matter . | . . Retrieved Matter . | . . Retrieved Components . | . . Parts Scanalyzed . | . . Part Schematics Acquired . | . . Parts Damaged . | . . Bothacking | -11 -10 ------------ Run | Yrd Mat Used RIF Installer . | . . Robots Hacked . | . . Non-combat . | . . Combat . | . . Robot Hacks Applied . | . . Relay Couplers Released . | . . Fabnet Peak Effective % . | . . Robots Rewired . | . . Allies Hacked . | . . Hacks Repelled . | . . Allies | -11 -10 -------- Run | Yrd Mat Total Allies . | . . Largest Group . | . . Highest-Rated Group . | . . Highest-Rated Ally . | . . Total Orders . | . . Ally Attacks . | . . Total Damage . | . . Kills . | . . Allies Corrupted . | . . Allies Melted . | . . Intel | -11 -10 ------- Run | Yrd Mat Robot Analysis Total . | . . Derelict Logs Recovered . | . . Drone Launches . | . . Drone Recoveries . | . . Exploration | -11 -10 ------------- Run | Yrd Mat Turns Passed 313 | 24 289 Spaces Moved 370 | 41 329 Core 187 | 41 146 Treads . | . . Legs . | . . Wheels . | . . Hover . | . . Flight 183 | . 183 Fastest Speed 40 | 50 40 Average Speed 45 | 50 44 Slowest Speed 50 | 50 50 Overloaded Moves . | . . Propulsion Burnouts . | . . Robots Hopped 5 | . 5 Cave-ins Triggered . | . . Exploration Rate (%) 23 | 3 43 Regions Visited 1 Branch Regions . Pre-discovered Areas . | . . Known Exits Taken . | . . Unknown Exits Taken 1 | 1 . Scrap Searched . | . . Spaces Dug . | . . Terrain Destroyed . | . . Melee . | . . Projectile . | . . AOE . | . . Terrain Rammed . | . . Walls Destroyed . | . . Machines Disabled . | . . Actions | -11 -10 --------- Run | Yrd Mat Total 443 | 42 401 Wait 14 | . 14 Move 360 | 40 320 Hop 4 | . 4 Pick Up . | . . Fast Attach 5 | 1 4 Attach . | . . Detach . | . . Swap . | . . Drop 1 | . 1 Fire 54 | 1 53 Melee . | . . Ram . | . . Kick . | . . Crush . | . . Escape Stasis . | . . Rewire . | . . Trap . | . . Miscellaneous 5 | . 5 Route ------- -11/Scrapyard -10/Materials (discovered 1 exit: [*Mat]) History --------- Turn | Location | Event 8 | -11/Scrapyard | Discovered new exit (range 14) 9 | -11/Scrapyard | Upgraded with Power slot (x1) 9 | -11/Scrapyard | Upgraded with Propulsion slot (x1) 9 | -11/Scrapyard | Upgraded with Utility slot (x1) 9 | -11/Scrapyard | Upgraded with Weapon slot (x1) 25 | -11/Scrapyard | Entered Materials 102 | -10/Materials | Discovered new exit (range 7) 173 | -10/Materials | Core integrity fell below 50% 285 | -10/Materials | Core integrity fell below 20% 300 | -10/Materials | Build established: Mutant 314 | -10/Materials | Destroyed by G-34 Mercenary with Small Laser Last Messages --------------- Awaiting botnet instructions. 00198_ K-01 Serf collects debris. 00223_ U-05 Engineer builds a Door. 00224_ Door malfunctions. 00231_ Acquired Ion Engine. 00232_ Dropped Ion Engine. 00234_ U-05 Engineer repairs door. 00245_ U-05 Engineer destroyed. 00253_ EM Pulse Gun destroyed. 00255_ R-06 Scavenger collects Ion Engine. 00258_ Acquired Lgt. Assault Rifle. 00264_ K-01 Serf collects debris. 00265_ G-47 Trooper IFF system glitched. 00269_ K-01 Serf collects debris. 00273_ Critical hit (Burn: +37). 00273_ K-01 Serf collects debris. 00286_ Flight Unit destroyed. 00287_ G-47 Trooper IFF system glitched. 00289_ G-47 Trooper destroyed. 00292_ K-01 Serf collects debris. Map ----- +----------------------------------------------------+ | ?????????????????????????????????????????????????? | | ?????????????????????????????????????????????????? | | ?????????????????????????????????????????????????? | | ?????????????????????????????????????????????????? | | ?????????????????????????????????????????????????? | | ?????????????????????????????????????????????????? | | ?????????????????????????????????????????????????? | | ?????????????????????????????????????????????????? | | ?????????????????????????????????????????????????? | | ?????????????????????????????????????????????????? | | ???????????????????????????????? ????????????????? | | ???????????????????????????????? ????????????????? | | ???????????????????????????????? ????????????????? | | ???????????????????????????????? ????????????????? | | ???????????????????????????????? ????????????????? | | ???????????????????????????????? ?????############ | | ???????????????????????????????? ?????# | | ???????????????????????????????# #????# | | ???????????????????????????????# #????# | | ???????????????????????????????# #????# | | ???????????????????##########??# #????# | | ???????????????????# #??# #????# | | ???????????????????# #??# #????#######+#### | | ???????????????????# * #??# #???###### #? | | ???????????????????# #??# ##### #? | | ???????????????????# [@ #??# #? | | ???????????????????# #??# #? | | ???????????????????# #??# #### ## #? | | ???????????????????# g! #??# #??# ### ##? | | ???????????????????# =% #### #??# #?# #?? | | ??????????#####+########+####### ####+### #?? | | ??????? # # ### | | ???????" ! == + """# # | | ???????" !%! ###### """# # | | ?????????############## #########?# """# # " | | ??????????????????????# #######???# + + " | | ????????????????????### # #???# # # " | | ????????????????????# # # #???####+### # | | ????????????????????# + # """ ####### ### | | ????????????????????# # # """ + #?? | | ???????????????????? # # """ #### #?? | | ???????????????????##?# # #??# ####### #?? | | ??????????????????????# + ""#??# ####### #?# | | ??????????????????????# # ""#??# ##! # # | | ??????????????????????# # T"#??# ## # # | | ?????????????????###### # ""#??# ## # + | | ?????????????????# # ""#??# ## # # | | ?????????????????# # #??# ## # # | | ?????????????????# ##########/## #o #? | | ?????????????????# #?????# # # ### | +----------------------------------------------------+ Best States ------------- Heat Dissipation 25 Energy Generation 5 Energy Capacity 100 Matter Stores 300 Matter Capacity 300 Sight Range 16 Terrain Scan Density 10 Evasion (%) 62 Offensive Hacking 10 Defensive Hacking 5 Item Schematics ----------------- None Robot Schematics ------------------ None Fabricated ------------ Nothing Alien Tech Used ----------------- None Achievements -------------- None Challenges ------------ None RPGLIKE | -11 -10 --------- Run | Yrd Mat Levels Raised . | . . XP Earned 3670 | 3000 670 XP Spent 2800 | 2800 . Upgrades 7 | 7 . Power Slot 1 | 1 . Propulsion Slot 1 | 1 . Utility Slot 1 | 1 . Weapon Slot 1 | 1 . Hack Attack % 2 | 2 . Hack Defense % 1 | 1 . Protomatter Created 80 | . 80 Integrity Restored 102 | . 102 Core 102 | . 102 Protomatter Decayed . | . . Game ------ Seed InertialElectronVibroblade Manual? 0 Play Time 00:08:10 Cumulative 156.7 hours Start 2024.08.05 @ 02:24:02 End 2024.08.05 @ 02:28:31 Sessions 1 Manual Loads 0 Difficulty Rogue Special Mode Winter2019/RPGLIKE Game No. 157 Rogue 157 Adventurer 0 Explorer 0 Win Type - Total 13 Types 11/0/0/1/0/0/1/0/0 Lore% 64 Gallery% 65 Achievement% 67 Wizard Run 0 Options --------- Layout 1 ASCII 0 Keyboard 0 Movement Numpad Keybinds 0 Fullscreen 1 Font 24/Smallcaps Map View 50x35 Zoom Use 0% Tactical HUD 1 Map Filters NONE Filters NONE Steam 1 RUN: c52df8ff-161a-4fba-b35c-c6042924975d